[Event "*** Qualifier 1: Titled Tuesday 3|2 Blitz"]
[Site "Chess.com"]
[Date "2017.04.04"]
[Round "6"]
[White "Titus369"]
[Black "hypert"]
[Result "1/2-1/2"]
[WhiteElo "2175"]
[BlackElo "2253"]
[TimeControl "180+2"]
[EndTime "14:24:39 PDT"]
[Termination "Game drawn by repetition"]

1. e4 {[%clk 0:03:02]} 1... c5 {[%clk 0:02:59.3]} 2. Nf3 {[%clk 0:03:02.9]} 2...
Nc6 {[%clk 0:03:00.8]} 3. d4 {[%clk 0:03:04.2]} 3... cxd4 {[%clk 0:03:02.7]} 4.
Nxd4 {[%clk 0:03:06.1]} 4... e5 {[%clk 0:03:04.2]} 5. Nb5 {[%clk 0:03:06.8]}
5... a6 {[%clk 0:03:05.8]} 6. Nd6+ {[%clk 0:03:07.6]} 6... Bxd6 {[%clk
0:03:07.4]} 7. Qxd6 {[%clk 0:03:09.1]} 7... Qf6 {[%clk 0:03:09.1]} 8. Qxf6
{[%clk 0:03:08.1]} 8... Nxf6 {[%clk 0:03:11]} 9. Nc3 {[%clk 0:03:08.3]} 9... Nb4
{[%clk 0:03:12.1]} 10. Bd3 {[%clk 0:03:08.7]} 10... h6 {[%clk 0:03:13.7]} 11.
Be3 {[%clk 0:03:07.2]} 11... Nxd3+ {[%clk 0:03:10.2]} 12. cxd3 {[%clk
0:03:09.1]} 12... d6 {[%clk 0:03:10.2]} 13. Na4 {[%clk 0:03:07]} 13... Be6
{[%clk 0:03:09.9]} 14. Nb6 {[%clk 0:03:02.7]} 14... Rd8 {[%clk 0:03:10.5]} 15.
h3 {[%clk 0:03:02.1]} 15... d5 {[%clk 0:03:10.4]} 16. exd5 {[%clk 0:03:02.8]}
16... Nxd5 {[%clk 0:03:11.4]} 17. Nxd5 {[%clk 0:03:03.9]} 17... Rxd5 {[%clk
0:03:13.3]} 18. O-O {[%clk 0:02:51]} 18... Kd7 {[%clk 0:03:10]} 19. Rfd1 {[%clk
0:02:48.1]} 19... Rc8 {[%clk 0:03:10.9]} 20. d4 {[%clk 0:02:48.9]} 20... e4
{[%clk 0:03:11.9]} 21. Rac1 {[%clk 0:02:49.3]} 21... Rxc1 {[%clk 0:03:03.6]} 22.
Rxc1 {[%clk 0:02:51.2]} 22... g5 {[%clk 0:03:04.2]} 23. a3 {[%clk 0:02:40.8]}
23... f5 {[%clk 0:03:03.2]} 24. g3 {[%clk 0:02:41.8]} 24... a5 {[%clk
0:02:55.1]} 25. Kh2 {[%clk 0:02:32.6]} 25... Rb5 {[%clk 0:02:54.7]} 26. Rc2
{[%clk 0:02:32.2]} 26... Rb3 {[%clk 0:02:48.8]} 27. h4 {[%clk 0:02:27.5]} 27...
f4 {[%clk 0:02:34.3]} 28. gxf4 {[%clk 0:02:26.5]} 28... gxh4 {[%clk 0:02:35.8]}
29. Rd2 {[%clk 0:02:18.1]} 29... Rd3 {[%clk 0:02:32.8]} 30. Rc2 {[%clk
0:02:01.4]} 30... b6 {[%clk 0:02:26.9]} 31. d5 {[%clk 0:01:48.6]} 31... Rxd5
{[%clk 0:02:16.1]} 32. Bxb6 {[%clk 0:01:46.1]} 32... a4 {[%clk 0:02:16.5]} 33.
Be3 {[%clk 0:01:46.3]} 33... Rd1 {[%clk 0:02:16]} 34. Rd2+ {[%clk 0:01:26.1]}
34... Rxd2 {[%clk 0:02:16.6]} 35. Bxd2 {[%clk 0:01:28]} 35... h5 {[%clk
0:02:13.5]} 36. Be3 {[%clk 0:01:25.1]} 36... Kc6 {[%clk 0:02:14.4]} 37. Bd4
{[%clk 0:01:24.5]} 37... Kb5 {[%clk 0:02:15.3]} 38. Be3 {[%clk 0:01:24.8]} 38...
Kc4 {[%clk 0:02:16.4]} 39. Ba7 {[%clk 0:01:25.7]} 39... Kd3 {[%clk 0:02:15]} 40.
Be3 {[%clk 0:01:26.5]} 40... Ke2 {[%clk 0:02:16.1]} 41. Ba7 {[%clk 0:01:26.6]}
41... Bg4 {[%clk 0:02:14.4]} 42. Bb6 {[%clk 0:01:27.1]} 42... Kf3 {[%clk
0:02:13.9]} 43. Be3 {[%clk 0:01:26.9]} 43... Be6 {[%clk 0:02:15.4]} 44. Kh1
{[%clk 0:01:23.6]} 44... Bc4 {[%clk 0:02:13.7]} 45. Kh2 {[%clk 0:01:24.4]} 45...
Bf1 {[%clk 0:02:11.6]} 46. Kh1 {[%clk 0:01:25.3]} 46... Kg4 {[%clk 0:02:09.7]}
47. Kh2 {[%clk 0:01:25.8]} 47... h3 {[%clk 0:02:10.5]} 48. Bd2 {[%clk
0:01:23.9]} 48... Bg2 {[%clk 0:02:11.3]} 49. Bc1 {[%clk 0:01:22.5]} 49... h4
{[%clk 0:02:08]} 50. Bd2 {[%clk 0:01:23.3]} 50... Kf3 {[%clk 0:02:06.7]} 51. Be3
{[%clk 0:01:17.8]} 51... Bf1 {[%clk 0:02:07.2]} 52. f5 {[%clk 0:01:16.6]} 52...
Kg4 {[%clk 0:02:06.8]} 53. f6 {[%clk 0:01:16.6]} 53... Bc4 {[%clk 0:02:08.3]}
54. Bd4 {[%clk 0:01:15.9]} 54... Be6 {[%clk 0:02:07.3]} 55. Be3 {[%clk
0:01:15.7]} 55... Bg8 {[%clk 0:02:03.6]} 56. Bd4 {[%clk 0:01:15.7]} 56... Bf7
{[%clk 0:02:04.1]} 57. Be3 {[%clk 0:01:16.6]} 57... Be6 {[%clk 0:02:04.2]} 58.
Bd2 {[%clk 0:01:14.4]} 58... Kf5 {[%clk 0:02:03.5]} 59. Kxh3 {[%clk 0:01:13.4]}
59... Kxf6+ {[%clk 0:02:04.2]} 60. Kxh4 {[%clk 0:01:14.8]} 60... Kf5 {[%clk
0:02:02.4]} 61. Kg3 {[%clk 0:01:14.8]} 61... Bb3 {[%clk 0:02:03.7]} 62. Bc3
{[%clk 0:01:15.5]} 62... Be6 {[%clk 0:02:05.1]} 63. Bd4 {[%clk 0:01:14.6]} 63...
Bb3 {[%clk 0:02:06.6]} 64. Ba7 {[%clk 0:01:15.1]} 64... Be6 {[%clk 0:02:07.1]}
65. Be3 {[%clk 0:01:09.8]} 65... Bb3 {[%clk 0:02:02.5]} 66. Kg2 {[%clk
0:01:10.5]} 66... Be6 {[%clk 0:02:02.9]} 67. Kf1 {[%clk 0:01:11.7]} 67... Bb3
{[%clk 0:02:04.1]} 68. Ke1 {[%clk 0:01:13.6]} 68... Be6 {[%clk 0:02:04.8]} 69.
Kd2 {[%clk 0:01:15.5]} 69... Bb3 {[%clk 0:02:05.6]} 70. Kc3 {[%clk 0:01:17.4]}
70... Ke5 {[%clk 0:02:06.2]} 71. Kb4 {[%clk 0:01:18.3]} 71... Kd5 {[%clk
0:02:07.3]} 72. Kc3 {[%clk 0:01:19]} 72... Ke5 {[%clk 0:02:08.5]} 73. Ba7 {[%clk
0:01:20.9]} 73... Kd5 {[%clk 0:02:09.6]} 74. Bd4 {[%clk 0:01:21.6]} 74... Ke6
{[%clk 0:02:09.7]} 75. Be3 {[%clk 0:01:22.4]} 75... Kd5 {[%clk 0:02:11.2]} 76.
Kb4 {[%clk 0:01:24.3]} 76... Ke6 {[%clk 0:02:10.9]} 77. Kc3 {[%clk 0:01:26.2]}
77... Kd5 {[%clk 0:02:11.9]} 78. Kd2 {[%clk 0:01:27.8]} 78... Kc4 {[%clk
0:02:12.3]} 79. Bf4 {[%clk 0:01:28.7]} 79... Kd5 {[%clk 0:02:13.2]} 80. Be3
{[%clk 0:01:30.6]} 80... Kc4 {[%clk 0:02:14]} 81. Bf4 {[%clk 0:01:31.8]} 81...
Kd5 {[%clk 0:02:15.1]} 82. Be3 {[%clk 0:01:33.7]} 82... Kc4 {[%clk 0:02:16.1]}
1/2-1/2

[Event "*** Qualifier 1: Titled Tuesday 3|2 Blitz"]
[Site "Chess.com"]
[Date "2017.04.04"]
[Round "6"]
[White "Keranke"]
[Black "SergeiAza"]
[Result "1/2-1/2"]
[WhiteElo "2716"]
[BlackElo "2646"]
[TimeControl "180+2"]
[EndTime "14:24:54 PDT"]
[Termination "Game drawn by agreement"]

1. d4 {[%clk 0:03:02]} 1... Nf6 {[%clk 0:03:00.3]} 2. Nf3 {[%clk 0:03:01.7]}
2... g6 {[%clk 0:03:01.1]} 3. Bf4 {[%clk 0:03:02.9]} 3... Bg7 {[%clk 0:03:02.1]}
4. h3 {[%clk 0:03:04.4]} 4... O-O {[%clk 0:03:01.1]} 5. e3 {[%clk 0:03:05.9]}
5... d6 {[%clk 0:03:01.8]} 6. Be2 {[%clk 0:03:06.7]} 6... Qe8 {[%clk 0:03:01.6]}
7. O-O {[%clk 0:03:07.4]} 7... Ne4 {[%clk 0:02:57.7]} 8. Bh2 {[%clk 0:03:05.3]}
8... e5 {[%clk 0:02:57.4]} 9. dxe5 {[%clk 0:03:05.6]} 9... dxe5 {[%clk
0:02:57.8]} 10. Nbd2 {[%clk 0:03:01.6]} 10... Bf5 {[%clk 0:02:52.1]} 11. Nxe4
{[%clk 0:02:50.2]} 11... Bxe4 {[%clk 0:02:52.6]} 12. c3 {[%clk 0:02:50.5]} 12...
Nd7 {[%clk 0:02:48.9]} 13. Qb3 {[%clk 0:02:50.8]} 13... Nc5 {[%clk 0:02:45.4]}
14. Qb4 {[%clk 0:02:51.1]} 14... b6 {[%clk 0:02:44.1]} 15. Rfd1 {[%clk
0:02:42.6]} 15... a5 {[%clk 0:02:29.4]} 16. Qc4 {[%clk 0:02:35.4]} 16... a4
{[%clk 0:02:29]} 17. b4 {[%clk 0:02:22.8]} 17... axb3 {[%clk 0:02:28.4]} 18.
axb3 {[%clk 0:02:23]} 18... Bc2 {[%clk 0:02:28.8]} 19. Rxa8 {[%clk 0:02:23.7]}
19... Qxa8 {[%clk 0:02:29.1]} 20. Rc1 {[%clk 0:02:22.9]} 20... Bxb3 {[%clk
0:02:26.6]} 21. Qh4 {[%clk 0:02:22.1]} 21... f6 {[%clk 0:02:22.1]} 22. Bc4+
{[%clk 0:02:13.7]} 22... Bxc4 {[%clk 0:02:22.4]} 23. Qxc4+ {[%clk 0:02:15.6]}
23... Kh8 {[%clk 0:02:23.6]} 24. h4 {[%clk 0:02:11.6]} 24... h5 {[%clk
0:02:17.1]} 25. Rd1 {[%clk 0:02:06.5]} 25... Rd8 {[%clk 0:02:06.1]} 26. Rxd8+
{[%clk 0:02:07.2]} 26... Qxd8 {[%clk 0:02:06.3]} 27. Bg3 {[%clk 0:02:08.7]}
27... Qd7 {[%clk 0:02:04.7]} 28. Kh2 {[%clk 0:02:08.2]} 28... Bf8 {[%clk
0:02:00.3]} 29. Qa2 {[%clk 0:02:02.1]} 29... Kg7 {[%clk 0:01:58.8]} 30. Qa7
{[%clk 0:01:52.8]} 30... Bd6 {[%clk 0:01:58.8]} 31. Nd2 {[%clk 0:01:51.6]} 31...
Qb5 {[%clk 0:01:49.2]} 32. Qa2 {[%clk 0:01:36.3]} 32... Qe2 {[%clk 0:01:44.4]}
33. Qd5 {[%clk 0:01:15.4]} 33... Qd3 {[%clk 0:01:36.3]} 34. Qa2 {[%clk
0:00:43.3]} 34... Qxc3 {[%clk 0:01:36.2]} 35. Nc4 {[%clk 0:00:43.8]} 35... Qb3
{[%clk 0:01:35.7]} 36. Qe2 {[%clk 0:00:44.9]} 36... b5 {[%clk 0:01:25.7]} 37.
Nxd6 {[%clk 0:00:42.9]} 37... cxd6 {[%clk 0:01:26.5]} 38. Qd2 {[%clk 0:00:40.5]}
38... Ne4 {[%clk 0:01:20.6]} 39. Qa5 {[%clk 0:00:41.2]} 39... b4 {[%clk
0:01:07]} 40. Qb5 {[%clk 0:00:35]} 40... Nc5 {[%clk 0:00:59.3]} 41. Qb6 {[%clk
0:00:25.7]} 41... Qc4 {[%clk 0:00:59.5]} 42. Qxd6 {[%clk 0:00:26]} 42... Ne4
{[%clk 0:00:22.7]} 43. Qe7+ {[%clk 0:00:27]} 43... Qf7 {[%clk 0:00:22.9]} 44.
Qxb4 {[%clk 0:00:27.8]} 1/2-1/2

[Event "*** Qualifier 1: Titled Tuesday 3|2 Blitz"]
[Site "Chess.com"]
[Date "2017.04.04"]
[Round "6"]
[White "michaelk123"]
[Black "Superfelix"]
[Result "1-0"]
[WhiteElo "2219"]
[BlackElo "2300"]
[TimeControl "180+2"]
[EndTime "14:24:57 PDT"]
[Termination "michaelk123 won on time"]

1. e4 {[%clk 0:03:02]} 1... c6 {[%clk 0:03:00.9]} 2. Nc3 {[%clk 0:03:01.4]} 2...
g6 {[%clk 0:03:01.3]} 3. d4 {[%clk 0:02:59.1]} 3... d5 {[%clk 0:03:02.5]} 4. Nf3
{[%clk 0:02:46.8]} 4... dxe4 {[%clk 0:03:03.3]} 5. Nxe4 {[%clk 0:02:47.6]} 5...
Nf6 {[%clk 0:03:05.2]} 6. Nxf6+ {[%clk 0:02:47.4]} 6... exf6 {[%clk 0:03:07.1]}
7. Bc4 {[%clk 0:02:37.1]} 7... Bg7 {[%clk 0:03:04.3]} 8. Qe2+ {[%clk 0:02:33.4]}
8... Qe7 {[%clk 0:03:04.4]} 9. Qxe7+ {[%clk 0:02:34.5]} 9... Kxe7 {[%clk
0:03:06.3]} 10. b3 {[%clk 0:02:35.1]} 10... Be6 {[%clk 0:03:04.3]} 11. Ba3+
{[%clk 0:02:33.9]} 11... Kd7 {[%clk 0:03:05.5]} 12. d5 {[%clk 0:02:33.9]} 12...
cxd5 {[%clk 0:02:54.6]} 13. O-O-O {[%clk 0:02:34.3]} 13... Kc6 {[%clk
0:02:51.2]} 14. Nd4+ {[%clk 0:02:31.6]} 14... Kb6 {[%clk 0:02:46]} 15. Be2
{[%clk 0:02:30.5]} 15... Nc6 {[%clk 0:02:44.6]} 16. Bb2 {[%clk 0:02:29.1]} 16...
Rhe8 {[%clk 0:02:40]} 17. Bf3 {[%clk 0:02:30.3]} 17... Rad8 {[%clk 0:02:39.1]}
18. Rhe1 {[%clk 0:02:26]} 18... Bh6+ {[%clk 0:02:38.1]} 19. Kb1 {[%clk
0:02:26.6]} 19... f5 {[%clk 0:02:35.5]} 20. Bc3 {[%clk 0:02:20.5]} 20... Bf8
{[%clk 0:02:07.6]} 21. Kb2 {[%clk 0:02:19.7]} 21... Bc5 {[%clk 0:02:08.3]} 22.
a4 {[%clk 0:02:12.4]} 22... a6 {[%clk 0:02:07.3]} 23. Re3 {[%clk 0:02:08.6]}
23... Kc7 {[%clk 0:01:49.1]} 24. Re2 {[%clk 0:02:02.4]} 24... Kd7 {[%clk
0:01:46.2]} 25. g3 {[%clk 0:01:52.9]} 25... Kc7 {[%clk 0:01:46.4]} 26. Bg2
{[%clk 0:01:51.9]} 26... Re7 {[%clk 0:01:43.4]} 27. Nxc6 {[%clk 0:01:35.3]}
27... bxc6 {[%clk 0:01:41.8]} 28. Bf6 {[%clk 0:01:35.1]} 28... Rde8 {[%clk
0:01:41.9]} 29. Bxe7 {[%clk 0:01:31.2]} 29... Bxe7 {[%clk 0:01:43.8]} 30. c3
{[%clk 0:01:26.7]} 30... Bf6 {[%clk 0:01:38.1]} 31. Kc2 {[%clk 0:01:27.9]} 31...
Kd7 {[%clk 0:01:36.9]} 32. f4 {[%clk 0:01:29.4]} 32... Kc7 {[%clk 0:01:37.5]}
33. Rde1 {[%clk 0:01:28.6]} 33... Rb8 {[%clk 0:01:37.7]} 34. Rxe6 {[%clk
0:01:26.6]} 34... fxe6 {[%clk 0:01:38.4]} 35. Rxe6 {[%clk 0:01:28.3]} 35... Rf8
{[%clk 0:01:35.8]} 36. a5 {[%clk 0:01:26.5]} 36... Kd7 {[%clk 0:01:36.3]} 37.
Re1 {[%clk 0:01:23.8]} 37... Kd6 {[%clk 0:01:32.4]} 38. Bf1 {[%clk 0:01:16.3]}
38... c5 {[%clk 0:01:31.7]} 39. Ra1 {[%clk 0:01:08.7]} 39... Ra8 {[%clk
0:01:18.9]} 40. Bd3 {[%clk 0:01:09.9]} 40... Kc6 {[%clk 0:01:16.4]} 41. Re1
{[%clk 0:01:08.8]} 41... Kd6 {[%clk 0:01:17]} 42. h4 {[%clk 0:01:04.4]} 42... h5
{[%clk 0:01:16.9]} 43. Bf1 {[%clk 0:00:59.2]} 43... Bd8 {[%clk 0:01:16.1]} 44.
Re8 {[%clk 0:00:58.6]} 44... Rb8 {[%clk 0:01:02.2]} 45. Rg8 {[%clk 0:00:57.2]}
45... Bxa5 {[%clk 0:01:02.1]} 46. Rxb8 {[%clk 0:00:56.9]} 1-0

[Event "*** Qualifier 1: Titled Tuesday 3|2 Blitz"]
[Site "Chess.com"]
[Date "2017.04.04"]
[Round "6"]
[White "rubhani"]
[Black "Alexander_Donchenko"]
[Result "1/2-1/2"]
[WhiteElo "2416"]
[BlackElo "2576"]
[TimeControl "180+2"]
[EndTime "14:25:36 PDT"]
[Termination "Game drawn by agreement"]

1. e4 {[%clk 0:02:59.8]} 1... c5 {[%clk 0:03:00.7]} 2. Nf3 {[%clk 0:03:00.9]}
2... d6 {[%clk 0:03:02.1]} 3. d4 {[%clk 0:03:02]} 3... cxd4 {[%clk 0:03:04]} 4.
Nxd4 {[%clk 0:03:03.2]} 4... Nf6 {[%clk 0:03:05.6]} 5. Nc3 {[%clk 0:03:04.4]}
5... a6 {[%clk 0:03:07.2]} 6. Bg5 {[%clk 0:03:05.4]} 6... Nbd7 {[%clk
0:03:08.6]} 7. Qe2 {[%clk 0:03:06.3]} 7... h6 {[%clk 0:03:09.3]} 8. Bh4 {[%clk
0:03:06.7]} 8... g6 {[%clk 0:03:10.6]} 9. f4 {[%clk 0:03:07.7]} 9... e5 {[%clk
0:03:11.7]} 10. fxe5 {[%clk 0:03:09]} 10... dxe5 {[%clk 0:03:12.7]} 11. O-O-O
{[%clk 0:03:10.2]} 11... Qc7 {[%clk 0:03:11]} 12. Nb3 {[%clk 0:03:10.9]} 12...
b5 {[%clk 0:03:12.2]} 13. Qf3 {[%clk 0:03:09.9]} 13... Be7 {[%clk 0:03:10.1]}
14. Rxd7 {[%clk 0:03:06.3]} 14... Qxd7 {[%clk 0:02:36.5]} 15. Bxf6 {[%clk
0:03:04.6]} 15... Bxf6 {[%clk 0:02:36.5]} 16. Qxf6 {[%clk 0:03:05.6]} 16... O-O
{[%clk 0:02:37.1]} 17. Bd3 {[%clk 0:03:00.1]} 17... Qe6 {[%clk 0:02:36.3]} 18.
Qxe6 {[%clk 0:02:56.6]} 18... Bxe6 {[%clk 0:02:38.2]} 19. Nc5 {[%clk 0:02:58]}
19... Bg4 {[%clk 0:02:28.2]} 20. h3 {[%clk 0:02:58.4]} 20... Rfc8 {[%clk
0:02:25.9]} 21. b4 {[%clk 0:02:51.5]} 21... a5 {[%clk 0:02:21.4]} 22. Nd5 {[%clk
0:02:52.3]} 22... axb4 {[%clk 0:02:18.6]} 23. Ne7+ {[%clk 0:02:53.2]} 23... Kf8
{[%clk 0:02:19.6]} 24. Nxc8 {[%clk 0:02:55.1]} 24... Bxc8 {[%clk 0:02:20.2]} 25.
Kb2 {[%clk 0:02:54.3]} 25... Ke7 {[%clk 0:02:20.2]} 26. Bxb5 {[%clk 0:02:54.8]}
26... Ra5 {[%clk 0:02:20.1]} 27. Bd3 {[%clk 0:02:28.1]} 27... Rxc5 {[%clk
0:02:20.7]} 28. Kb3 {[%clk 0:02:29.4]} 28... Ra5 {[%clk 0:02:19.6]} 29. Ra1
{[%clk 0:02:27.6]} 29... Bd7 {[%clk 0:02:02.5]} 30. Kxb4 {[%clk 0:02:27.5]}
30... Ra4+ {[%clk 0:02:04.1]} 31. Kb3 {[%clk 0:02:28.7]} 31... Kd6 {[%clk
0:02:00.2]} 32. Rd1 {[%clk 0:02:28.1]} 32... Kc5 {[%clk 0:01:53.6]} 33. a3
{[%clk 0:02:19.2]} 33... Ra7 {[%clk 0:01:51.4]} 34. Bc4 {[%clk 0:02:14.7]} 34...
Ba4+ {[%clk 0:01:40.5]} 35. Kc3 {[%clk 0:02:09.9]} 35... Bc6 {[%clk 0:01:41.6]}
36. Bd5 {[%clk 0:01:23.4]} 36... Rxa3+ {[%clk 0:01:41]} 37. Kb2 {[%clk
0:01:24.6]} 37... Rg3 {[%clk 0:01:41.5]} 38. Bxc6 {[%clk 0:01:23.5]} 38... Kxc6
{[%clk 0:01:43.4]} 39. Rf1 {[%clk 0:01:24.5]} 39... Rxg2 {[%clk 0:01:36.2]} 40.
Rxf7 {[%clk 0:01:24.6]} 40... Rg3 {[%clk 0:01:32]} 41. c3 {[%clk 0:01:21.1]}
41... Kd6 {[%clk 0:01:28.9]} 42. Ra7 {[%clk 0:01:00.1]} 42... Ke6 {[%clk
0:01:25.8]} 43. Ra6+ {[%clk 0:01:00.3]} 43... Kf7 {[%clk 0:01:27]} 44. Ra7+
{[%clk 0:01:01.4]} 44... Kf6 {[%clk 0:01:28.4]} 45. h4 {[%clk 0:01:02.5]} 45...
Rg4 {[%clk 0:01:27.9]} 46. Ra6+ {[%clk 0:01:03.2]} 46... Kf7 {[%clk 0:01:29.1]}
47. Ra7+ {[%clk 0:01:01.4]} 47... Ke8 {[%clk 0:01:28.2]} 48. Ra8+ {[%clk
0:00:59.7]} 48... Kd7 {[%clk 0:01:29.2]} 49. Ra7+ {[%clk 0:01:00.8]} 49... Kc8
{[%clk 0:01:30.1]} 50. Ra6 {[%clk 0:00:36.1]} 50... Kb7 {[%clk 0:01:24.3]} 51.
Re6 {[%clk 0:00:36]} 51... h5 {[%clk 0:01:24.9]} 52. Kb3 {[%clk 0:00:34.5]}
52... Kc7 {[%clk 0:01:24.4]} 53. Kc4 {[%clk 0:00:33.7]} 53... Rxe4+ {[%clk
0:01:24.5]} 54. Kd5 {[%clk 0:00:34.9]} 54... Rxh4 {[%clk 0:01:11.6]} 55. Rxg6
{[%clk 0:00:34.6]} 55... Rg4 {[%clk 0:01:12.6]} 56. Rh6 {[%clk 0:00:32.9]} 56...
Rg5 {[%clk 0:01:10.2]} 57. c4 {[%clk 0:00:33.5]} 57... e4+ {[%clk 0:01:04.1]}
58. Kxe4 {[%clk 0:00:33.6]} 58... Rg4+ {[%clk 0:01:04.9]} 59. Kd5 {[%clk
0:00:34.3]} 59... Rg5+ {[%clk 0:01:06.2]} 60. Kd4 {[%clk 0:00:35.3]} 60... Rg4+
{[%clk 0:01:07.6]} 61. Kc5 {[%clk 0:00:36.6]} 61... Rg5+ {[%clk 0:01:07.6]} 62.
Kb4 {[%clk 0:00:37.7]} 62... Kb7 {[%clk 0:01:07.5]} 63. c5 {[%clk 0:00:38.5]}
63... Rg1 {[%clk 0:01:08.1]} 1/2-1/2

[Event "*** Qualifier 1: Titled Tuesday 3|2 Blitz"]
[Site "Chess.com"]
[Date "2017.04.04"]
[Round "6"]
[White "proxy6"]
[Black "Grebeniuk-S"]
[Result "0-1"]
[WhiteElo "2204"]
[BlackElo "2413"]
[TimeControl "180+2"]
[EndTime "14:25:50 PDT"]
[Termination "Grebeniuk-S won by checkmate"]

1. e4 {[%clk 0:03:02]} 1... d5 {[%clk 0:03:00]} 2. exd5 {[%clk 0:03:02.1]} 2...
Qxd5 {[%clk 0:03:01.9]} 3. Nc3 {[%clk 0:03:01.2]} 3... Qa5 {[%clk 0:03:03]} 4.
Bc4 {[%clk 0:03:01.2]} 4... Nf6 {[%clk 0:03:04.2]} 5. d3 {[%clk 0:03:01]} 5...
c6 {[%clk 0:03:00.9]} 6. Ne2 {[%clk 0:02:59]} 6... Bg4 {[%clk 0:03:01.2]} 7. f3
{[%clk 0:02:59.5]} 7... Bc8 {[%clk 0:02:59.3]} 8. Bd2 {[%clk 0:02:59.4]} 8...
Qc7 {[%clk 0:02:57.8]} 9. O-O {[%clk 0:02:58.4]} 9... e5 {[%clk 0:02:55.2]} 10.
Re1 {[%clk 0:02:57.3]} 10... Bc5+ {[%clk 0:02:53.5]} 11. Kh1 {[%clk 0:02:57]}
11... O-O {[%clk 0:02:55]} 12. Bg5 {[%clk 0:02:52.3]} 12... Nbd7 {[%clk
0:02:49.2]} 13. Ng3 {[%clk 0:02:51.4]} 13... h6 {[%clk 0:02:48]} 14. Be3 {[%clk
0:02:49.2]} 14... Bxe3 {[%clk 0:02:42.5]} 15. Rxe3 {[%clk 0:02:51.1]} 15... Nb6
{[%clk 0:02:36.8]} 16. Bb3 {[%clk 0:02:45.4]} 16... Nbd5 {[%clk 0:02:37.1]} 17.
Nxd5 {[%clk 0:02:43]} 17... cxd5 {[%clk 0:02:34.1]} 18. d4 {[%clk 0:02:36.2]}
18... e4 {[%clk 0:02:12.1]} 19. Qd2 {[%clk 0:02:19.7]} 19... Qf4 {[%clk
0:02:04.2]} 20. c4 {[%clk 0:01:50.8]} 20... exf3 {[%clk 0:01:59.5]} 21. gxf3
{[%clk 0:01:46.3]} 21... Bh3 {[%clk 0:01:54.3]} 22. Rd3 {[%clk 0:01:31.7]} 22...
Qh4 {[%clk 0:01:41.3]} 23. Rg1 {[%clk 0:01:20.3]} 23... Rad8 {[%clk 0:01:33.3]}
24. c5 {[%clk 0:01:02.2]} 24... Rfe8 {[%clk 0:01:30.3]} 25. Re3 {[%clk
0:00:56.2]} 25... Rxe3 {[%clk 0:01:28.8]} 26. Qxe3 {[%clk 0:00:58.1]} 26... Re8
{[%clk 0:01:30.6]} 27. Qd3 {[%clk 0:00:58.9]} 27... Qf4 {[%clk 0:01:29.6]} 28.
Ne2 {[%clk 0:00:25]} 28... Qh4 {[%clk 0:01:13.3]} 29. Bc2 {[%clk 0:00:21.4]}
29... Qf2 {[%clk 0:00:58.4]} 30. Nf4 {[%clk 0:00:19.2]} 30... Re3 {[%clk
0:00:49.9]} 31. Qd1 {[%clk 0:00:14.2]} 31... Bd7 {[%clk 0:00:30.1]} 32. Rf1
{[%clk 0:00:12.9]} 32... Qh4 {[%clk 0:00:29.8]} 33. Ng2 {[%clk 0:00:13.4]} 33...
Qg5 {[%clk 0:00:25.3]} 34. Nxe3 {[%clk 0:00:14.8]} 34... Qxe3 {[%clk 0:00:27.2]}
35. Re1 {[%clk 0:00:14.7]} 35... Qf2 {[%clk 0:00:26.6]} 36. Rf1 {[%clk
0:00:12.1]} 36... Qh4 {[%clk 0:00:26.5]} 37. Qd3 {[%clk 0:00:12.9]} 37... Bh3
{[%clk 0:00:26.3]} 38. Rg1 {[%clk 0:00:13.8]} 38... Qf4 {[%clk 0:00:26.4]} 39.
b4 {[%clk 0:00:12.8]} 39... Kf8 {[%clk 0:00:19.9]} 40. b5 {[%clk 0:00:12.7]}
40... g6 {[%clk 0:00:21.2]} 41. a4 {[%clk 0:00:12.5]} 41... Bf5 {[%clk
0:00:22.6]} 42. Qc3 {[%clk 0:00:12.8]} 42... Bxc2 {[%clk 0:00:23.3]} 43. Qxc2
{[%clk 0:00:14.7]} 43... Qxf3+ {[%clk 0:00:22.6]} 44. Qg2 {[%clk 0:00:14.9]}
44... Qc3 {[%clk 0:00:21.6]} 45. Rd1 {[%clk 0:00:11]} 45... Ne4 {[%clk
0:00:22.2]} 46. Qe2 {[%clk 0:00:07.9]} 46... Kg7 {[%clk 0:00:19.4]} 47. Kg2
{[%clk 0:00:06.5]} 47... f5 {[%clk 0:00:20.1]} 48. Qe1 {[%clk 0:00:05.5]} 48...
Qc2+ {[%clk 0:00:18.2]} 49. Kg1 {[%clk 0:00:03.8]} 49... f4 {[%clk 0:00:19.3]}
50. a5 {[%clk 0:00:02.2]} 50... f3 {[%clk 0:00:20.1]} 51. Kh1 {[%clk 0:00:03]}
51... Qg2# {[%clk 0:00:20.6]} 0-1